[Event "Late-Titled-Tuesday-Blitz-May-14-2024"]
[Site "Chess.com"]
[Date "2024.05.14"]
[Round "2"]
[White "Orest_Vovk"]
[Black "MITerryble"]
[Result "1-0"]
[WhiteElo "2675"]
[BlackElo "3000"]
[TimeControl "180+1"]
[EndTime "14:18:19 PDT"]
[Termination "Orest_Vovk won by resignation"]

1. h4 {[%clk 0:02:59.8]} 1... d5 {[%clk 0:02:47.7]} 2. h5 {[%clk 0:03:00.1]}
2... e5 {[%clk 0:02:48.1]} 3. h6 {[%clk 0:02:59.7]} 3... Nxh6 {[%clk 0:02:48.2]}
4. d4 {[%clk 0:03:00.2]} 4... e4 {[%clk 0:02:45.8]} 5. Bxh6 {[%clk 0:03:00.6]}
5... gxh6 {[%clk 0:02:46.7]} 6. e3 {[%clk 0:03:01]} 6... c5 {[%clk 0:02:43.6]}
7. Nc3 {[%clk 0:02:58.3]} 7... Nc6 {[%clk 0:02:41.9]} 8. dxc5 {[%clk 0:02:53.8]}
8... Be6 {[%clk 0:02:42.1]} 9. Rh5 {[%clk 0:02:52.3]} 9... f5 {[%clk 0:02:39.7]}
10. Nge2 {[%clk 0:02:40.5]} 10... Ne7 {[%clk 0:02:31.2]} 11. Nf4 {[%clk
0:02:36.7]} 11... Bf7 {[%clk 0:02:31.6]} 12. Bb5+ {[%clk 0:02:31.9]} 12... Nc6
{[%clk 0:02:31.9]} 13. Rxf5 {[%clk 0:02:28.9]} 13... Bg7 {[%clk 0:02:32]} 14.
Rxf7 {[%clk 0:01:38.5]} 14... Kxf7 {[%clk 0:02:32.9]} 15. Qh5+ {[%clk
0:01:38.5]} 15... Kg8 {[%clk 0:02:33.5]} 16. O-O-O {[%clk 0:01:23.7]} 16... Qg5
{[%clk 0:02:33.5]} 17. Qh3 {[%clk 0:01:18.6]} 17... Bxc3 {[%clk 0:02:23.4]} 18.
Rxd5 {[%clk 0:01:10]} 18... Bxb2+ {[%clk 0:02:17.5]} 19. Kxb2 {[%clk 0:01:08.9]}
19... Qf6+ {[%clk 0:02:17.7]} 20. c3 {[%clk 0:01:01]} 20... Rd8 {[%clk
0:02:03.8]} 21. Rxd8+ {[%clk 0:00:47.4]} 21... Nxd8 {[%clk 0:02:01.6]} 22. Bc4+
{[%clk 0:00:46.4]} 22... Kf8 {[%clk 0:01:59.5]} 23. Qd7 {[%clk 0:00:36.7]} 23...
h5 {[%clk 0:01:37.8]} 24. Nxh5 {[%clk 0:00:23.1]} 24... Qxf2+ {[%clk 0:00:54.5]}
25. Kb3 {[%clk 0:00:22.8]} 25... Qh4 {[%clk 0:00:55.4]} 26. Qg7+ {[%clk
0:00:20.5]} 26... Ke8 {[%clk 0:00:55.9]} 27. Nf6+ {[%clk 0:00:16.9]} 27... Qxf6
{[%clk 0:00:56.5]} 28. Qxf6 {[%clk 0:00:17.5]} 28... Rf8 {[%clk 0:00:57.2]} 29.
Qe5+ {[%clk 0:00:16.9]} 29... Kd7 {[%clk 0:00:57.3]} 30. Qd6+ {[%clk 0:00:15]}
30... Ke8 {[%clk 0:00:57.8]} 31. Bb5+ {[%clk 0:00:14.8]} 31... Kf7 {[%clk
0:00:58.3]} 32. Qd5+ {[%clk 0:00:12.6]} 32... Kf6 {[%clk 0:00:53]} 33. Qxe4
{[%clk 0:00:11.7]} 33... Ne6 {[%clk 0:00:52.4]} 34. Qh4+ {[%clk 0:00:07.8]}
34... Ke5 {[%clk 0:00:50]} 35. Kb4 {[%clk 0:00:08.3]} 35... a5+ {[%clk
0:00:45.2]} 36. Ka3 {[%clk 0:00:06.3]} 36... Rf5 {[%clk 0:00:34.5]} 37. Bc4
{[%clk 0:00:05.9]} 37... h5 {[%clk 0:00:28.9]} 38. Bxe6 {[%clk 0:00:04.2]} 38...
Kxe6 {[%clk 0:00:29.8]} 39. Qe4+ {[%clk 0:00:04.4]} 39... Re5 {[%clk 0:00:29.4]}
40. Qxb7 {[%clk 0:00:05.3]} 40... Rxc5 {[%clk 0:00:30]} 41. Qb6+ {[%clk
0:00:05.2]} 41... Kd5 {[%clk 0:00:30.9]} 42. Qxc5+ {[%clk 0:00:05.4]} 42... Kxc5
{[%clk 0:00:31.5]} 43. Ka4 {[%clk 0:00:06]} 43... h4 {[%clk 0:00:32.1]} 44. Kxa5
{[%clk 0:00:06.1]} 44... Kc4 {[%clk 0:00:31.5]} 45. e4 {[%clk 0:00:06.5]} 45...
Kd3 {[%clk 0:00:32]} 46. e5 {[%clk 0:00:06.7]} 46... Ke2 {[%clk 0:00:32.9]} 47.
e6 {[%clk 0:00:07.3]} 47... Kf2 {[%clk 0:00:33.8]} 48. e7 {[%clk 0:00:07.9]}
48... Kxg2 {[%clk 0:00:34.7]} 49. e8=Q {[%clk 0:00:08.5]} 49... h3 {[%clk
0:00:35.6]} 50. Qh5 {[%clk 0:00:08.9]} 50... h2 {[%clk 0:00:36.5]} 51. Qxh2+
{[%clk 0:00:09.3]} 1-0

[Event "Late-Titled-Tuesday-Blitz-May-14-2024"]
[Site "Chess.com"]
[Date "2024.05.14"]
[Round "2"]
[White "LiemLe"]
[Black "guineo59"]
[Result "1-0"]
[WhiteElo "3037"]
[BlackElo "2218"]
[TimeControl "180+1"]
[EndTime "14:18:19 PDT"]
[Termination "LiemLe won by checkmate"]

1. Nf3 {[%clk 0:03:00.9]} 1... Nf6 {[%clk 0:02:59.4]} 2. c4 {[%clk 0:03:00.8]}
2... g6 {[%clk 0:02:59.2]} 3. Nc3 {[%clk 0:03:00.4]} 3... Bg7 {[%clk 0:02:59.8]}
4. e4 {[%clk 0:03:00.7]} 4... d6 {[%clk 0:03:00.4]} 5. d4 {[%clk 0:03:01.5]}
5... O-O {[%clk 0:03:00.1]} 6. Be2 {[%clk 0:03:02.1]} 6... Na6 {[%clk
0:02:59.9]} 7. O-O {[%clk 0:03:02.5]} 7... e5 {[%clk 0:03:00.1]} 8. Re1 {[%clk
0:03:03.2]} 8... c6 {[%clk 0:02:59.8]} 9. Bf1 {[%clk 0:03:00.2]} 9... Bg4 {[%clk
0:02:57.7]} 10. d5 {[%clk 0:02:57.5]} 10... Nb4 {[%clk 0:02:56.7]} 11. Be2
{[%clk 0:02:55]} 11... a5 {[%clk 0:02:55.1]} 12. Be3 {[%clk 0:02:54.1]} 12... c5
{[%clk 0:02:49.6]} 13. a3 {[%clk 0:02:44.8]} 13... Na6 {[%clk 0:02:49]} 14. Nd2
{[%clk 0:02:45.2]} 14... Bd7 {[%clk 0:02:47.1]} 15. Rb1 {[%clk 0:02:31.5]} 15...
Ne8 {[%clk 0:02:45.6]} 16. Kh1 {[%clk 0:02:25.4]} 16... f5 {[%clk 0:02:45.3]}
17. exf5 {[%clk 0:02:26.3]} 17... gxf5 {[%clk 0:02:45.1]} 18. f4 {[%clk
0:02:26.5]} 18... e4 {[%clk 0:02:45.2]} 19. Rg1 {[%clk 0:02:26.3]} 19... Nf6
{[%clk 0:02:44.9]} 20. h3 {[%clk 0:02:22]} 20... Kh8 {[%clk 0:02:35]} 21. Qe1
{[%clk 0:02:19.6]} 21... Nc7 {[%clk 0:02:04.9]} 22. g4 {[%clk 0:02:06.7]} 22...
b5 {[%clk 0:02:01.8]} 23. g5 {[%clk 0:02:04.3]} 23... Ng8 {[%clk 0:02:00.5]} 24.
cxb5 {[%clk 0:02:04]} 24... Ne7 {[%clk 0:01:50]} 25. Bc4 {[%clk 0:01:52.1]}
25... a4 {[%clk 0:01:45.9]} 26. Qe2 {[%clk 0:01:48.2]} 26... Rb8 {[%clk
0:01:43]} 27. Rgd1 {[%clk 0:01:38.1]} 27... Be8 {[%clk 0:01:37.5]} 28. Nf1
{[%clk 0:01:28.8]} 28... Qd7 {[%clk 0:01:32.3]} 29. Bxc5 {[%clk 0:01:27.9]}
29... dxc5 {[%clk 0:01:25.2]} 30. d6 {[%clk 0:01:28.8]} 30... Ne6 {[%clk
0:01:09.5]} 31. Bxe6 {[%clk 0:01:15]} 31... Qxe6 {[%clk 0:01:06.6]} 32. dxe7
{[%clk 0:01:15.9]} 32... Qxe7 {[%clk 0:01:06.3]} 33. Ne3 {[%clk 0:01:15.6]}
33... Bd4 {[%clk 0:01:03.9]} 34. Rd2 {[%clk 0:01:02.1]} 34... Qb7 {[%clk
0:00:49.7]} 35. Rbd1 {[%clk 0:00:53.6]} 35... Bxb5 {[%clk 0:00:49.2]} 36. Qe1
{[%clk 0:00:51.4]} 36... Bd3 {[%clk 0:00:49.2]} 37. Nxa4 {[%clk 0:00:47.9]}
37... c4 {[%clk 0:00:45.8]} 38. Nc3 {[%clk 0:00:41.1]} 38... Qb6 {[%clk
0:00:36.5]} 39. Nxc4 {[%clk 0:00:40.1]} 39... Bxc3 {[%clk 0:00:35]} 40. Nxb6
{[%clk 0:00:39.5]} 40... Bxd2 {[%clk 0:00:34.4]} 41. Qxd2 {[%clk 0:00:40.4]}
41... Rxb6 {[%clk 0:00:34.4]} 42. Rc1 {[%clk 0:00:39.1]} 42... Kg8 {[%clk
0:00:30.5]} 43. b4 {[%clk 0:00:39.1]} 43... Re6 {[%clk 0:00:30]} 44. Rc7 {[%clk
0:00:32.9]} 44... Rf7 {[%clk 0:00:24.2]} 45. Rc8+ {[%clk 0:00:28.8]} 45... Rf8
{[%clk 0:00:23.7]} 46. Qa2 {[%clk 0:00:29.5]} 46... Kf7 {[%clk 0:00:18.3]} 47.
Rc7+ {[%clk 0:00:28.3]} 47... Kg6 {[%clk 0:00:16.8]} 48. Qxe6+ {[%clk
0:00:29.2]} 48... Kh5 {[%clk 0:00:17.4]} 49. Rxh7# {[%clk 0:00:28.9]} 1-0

[Event "Late-Titled-Tuesday-Blitz-May-14-2024"]
[Site "Chess.com"]
[Date "2024.05.14"]
[Round "2"]
[White "geordie_derraugh"]
[Black "chessdjw"]
[Result "0-1"]
[WhiteElo "2445"]
[BlackElo "2759"]
[TimeControl "180+1"]
[EndTime "14:18:22 PDT"]
[Termination "chessdjw won on time"]

1. e4 {[%clk 0:03:00.9]} 1... e5 {[%clk 0:02:59.9]} 2. Bc4 {[%clk 0:03:00.7]}
2... Nf6 {[%clk 0:02:59.7]} 3. d3 {[%clk 0:03:01.3]} 3... Bc5 {[%clk 0:02:59.7]}
4. Nc3 {[%clk 0:03:00.4]} 4... c6 {[%clk 0:02:59.6]} 5. f4 {[%clk 0:02:57]} 5...
exf4 {[%clk 0:02:57.5]} 6. Bxf4 {[%clk 0:02:53.9]} 6... O-O {[%clk 0:02:50.6]}
7. Bg5 {[%clk 0:02:44.5]} 7... d5 {[%clk 0:02:23]} 8. Bb3 {[%clk 0:02:42.3]}
8... Bg4 {[%clk 0:02:03.1]} 9. Nf3 {[%clk 0:02:37.4]} 9... h6 {[%clk 0:01:54.4]}
10. Bh4 {[%clk 0:02:19.9]} 10... g5 {[%clk 0:01:53.3]} 11. Bf2 {[%clk 0:02:12]}
11... Bxf2+ {[%clk 0:01:51.7]} 12. Kxf2 {[%clk 0:02:12.9]} 12... Qb6+ {[%clk
0:01:45.5]} 13. Kg3 {[%clk 0:02:07.9]} 13... dxe4 {[%clk 0:01:30]} 14. Nxe4
{[%clk 0:02:01.6]} 14... Qc7+ {[%clk 0:01:08.2]} 15. Kf2 {[%clk 0:02:01.6]}
15... Nxe4+ {[%clk 0:01:08.6]} 16. dxe4 {[%clk 0:02:01.6]} 16... Rd8 {[%clk
0:01:09.2]} 17. Qe2 {[%clk 0:01:59.6]} 17... Nd7 {[%clk 0:01:02.8]} 18. h3
{[%clk 0:01:36.2]} 18... Bxf3 {[%clk 0:01:01.2]} 19. gxf3 {[%clk 0:01:32.2]}
19... Ne5 {[%clk 0:00:57.8]} 20. h4 {[%clk 0:01:14.5]} 20... Qb6+ {[%clk
0:00:47.8]} 21. Kg3 {[%clk 0:01:10.6]} 21... Ng6 {[%clk 0:00:39.3]} 22. hxg5
{[%clk 0:01:05.1]} 22... hxg5 {[%clk 0:00:40.2]} 23. Rae1 {[%clk 0:00:29.4]}
23... Kg7 {[%clk 0:00:37.9]} 24. e5 {[%clk 0:00:28.4]} 24... Rd4 {[%clk
0:00:31.8]} 25. e6 {[%clk 0:00:24]} 25... Qc7+ {[%clk 0:00:30]} 26. Kf2 {[%clk
0:00:24.4]} 26... Rad8 {[%clk 0:00:20.6]} 27. e7 {[%clk 0:00:21.5]} 27... Rd2
{[%clk 0:00:17.4]} 28. exd8=Q {[%clk 0:00:16.6]} 28... Rxe2+ {[%clk 0:00:16.9]}
29. Rxe2 {[%clk 0:00:17.5]} 29... Qxd8 {[%clk 0:00:17.1]} 30. Rhe1 {[%clk
0:00:17.5]} 30... Qd4+ {[%clk 0:00:17.1]} 31. Kf1 {[%clk 0:00:17.3]} 31... Qxb2
{[%clk 0:00:17.6]} 32. Re7 {[%clk 0:00:12.5]} 32... Nxe7 {[%clk 0:00:17.2]} 33.
Rxe7 {[%clk 0:00:13.4]} 33... Qf6 {[%clk 0:00:16.8]} 34. Rxb7 {[%clk 0:00:09.8]}
34... Qxf3+ {[%clk 0:00:16.9]} 35. Kg1 {[%clk 0:00:10.2]} 35... Kg6 {[%clk
0:00:14.1]} 36. Rc7 {[%clk 0:00:06.8]} 36... f6 {[%clk 0:00:12.8]} 37. Rb7
{[%clk 0:00:05.7]} 37... g4 {[%clk 0:00:12.9]} 38. Bf7+ {[%clk 0:00:05.3]} 38...
Kg5 {[%clk 0:00:13.2]} 39. Be6 {[%clk 0:00:03.9]} 39... g3 {[%clk 0:00:13.1]}
40. Rg7+ {[%clk 0:00:03.8]} 40... Kh6 {[%clk 0:00:13.2]} 0-1

[Event "Late-Titled-Tuesday-Blitz-May-14-2024"]
[Site "Chess.com"]
[Date "2024.05.14"]
[Round "2"]
[White "campochess"]
[Black "Ali_rastbod"]
[Result "0-1"]
[WhiteElo "2109"]
[BlackElo "2706"]
[TimeControl "180+1"]
[EndTime "14:18:23 PDT"]
[Termination "Ali_rastbod won on time"]

1. d4 {[%clk 0:02:59.3]} 1... d5 {[%clk 0:02:55.2]} 2. Bg5 {[%clk 0:02:59]} 2...
f6 {[%clk 0:02:53.2]} 3. Bd2 {[%clk 0:02:57.6]} 3... e5 {[%clk 0:02:52.8]} 4. e3
{[%clk 0:02:56.1]} 4... Bd6 {[%clk 0:02:36]} 5. c4 {[%clk 0:02:54.8]} 5... c6
{[%clk 0:02:32]} 6. cxd5 {[%clk 0:02:52.9]} 6... cxd5 {[%clk 0:02:32.9]} 7. Nc3
{[%clk 0:02:52.5]} 7... Ne7 {[%clk 0:02:33.1]} 8. Bb5+ {[%clk 0:02:45.8]} 8...
Nbc6 {[%clk 0:02:33]} 9. Qh5+ {[%clk 0:02:44.1]} 9... g6 {[%clk 0:02:32.7]} 10.
Qe2 {[%clk 0:02:43.6]} 10... O-O {[%clk 0:02:31.7]} 11. Bxc6 {[%clk 0:02:41]}
11... bxc6 {[%clk 0:02:31]} 12. h4 {[%clk 0:02:17.3]} 12... a5 {[%clk
0:02:26.7]} 13. h5 {[%clk 0:02:16.2]} 13... g5 {[%clk 0:02:26.9]} 14. h6 {[%clk
0:02:12.4]} 14... Ng6 {[%clk 0:02:20.7]} 15. Qh5 {[%clk 0:02:10.7]} 15... Re8
{[%clk 0:02:15.1]} 16. Nge2 {[%clk 0:02:09.7]} 16... Ba6 {[%clk 0:02:10.4]} 17.
O-O {[%clk 0:02:03]} 17... exd4 {[%clk 0:01:51]} 18. Nxd4 {[%clk 0:02:01.6]}
18... Bxf1 {[%clk 0:01:44]} 19. Rxf1 {[%clk 0:02:01.2]} 19... Qd7 {[%clk
0:01:38.9]} 20. Rc1 {[%clk 0:01:53]} 20... Ne5 {[%clk 0:01:30]} 21. Qe2 {[%clk
0:01:35.8]} 21... Nc4 {[%clk 0:01:22.4]} 22. b3 {[%clk 0:01:26.3]} 22... Nxd2
{[%clk 0:01:21.5]} 23. Qxd2 {[%clk 0:01:26.4]} 23... Bb4 {[%clk 0:01:19.1]} 24.
Qd3 {[%clk 0:01:25.3]} 24... c5 {[%clk 0:01:11.6]} 25. Nf5 {[%clk 0:01:20.2]}
25... Rad8 {[%clk 0:01:11]} 26. Ng3 {[%clk 0:01:00]} 26... Kh8 {[%clk
0:00:54.3]} 27. Na4 {[%clk 0:00:56.8]} 27... Qc6 {[%clk 0:00:44.4]} 28. Rc2
{[%clk 0:00:39.7]} 28... Rc8 {[%clk 0:00:43.1]} 29. Qf5 {[%clk 0:00:36.9]} 29...
Qe6 {[%clk 0:00:42.8]} 30. Qf3 {[%clk 0:00:32.5]} 30... c4 {[%clk 0:00:39.7]}
31. bxc4 {[%clk 0:00:22.9]} 31... dxc4 {[%clk 0:00:40.1]} 32. Nc3 {[%clk
0:00:19]} 32... Bxc3 {[%clk 0:00:39]} 33. Rxc3 {[%clk 0:00:18.4]} 33... Qe5
{[%clk 0:00:39.7]} 34. Rc1 {[%clk 0:00:15.7]} 34... c3 {[%clk 0:00:39.7]} 35.
Qb7 {[%clk 0:00:13.7]} 35... Rc7 {[%clk 0:00:39.9]} 36. Qb3 {[%clk 0:00:12]}
36... Rec8 {[%clk 0:00:37.6]} 37. Nh5 {[%clk 0:00:05.5]} 37... c2 {[%clk
0:00:35.1]} 38. Qb6 {[%clk 0:00:03.3]} 38... Rc6 {[%clk 0:00:26]} 39. Qb7 {[%clk
0:00:03.1]} 39... Qc7 {[%clk 0:00:26.7]} 40. Qb2 {[%clk 0:00:01.5]} 40... Qf7
{[%clk 0:00:22.8]} 0-1

[Event "Late-Titled-Tuesday-Blitz-May-14-2024"]
[Site "Chess.com"]
[Date "2024.05.14"]
[Round "2"]
[White "Roberz12"]
[Black "PepeCuenca"]
[Result "0-1"]
[WhiteElo "2572"]
[BlackElo "2820"]
[TimeControl "180+1"]
[EndTime "14:18:24 PDT"]
[Termination "PepeCuenca won by resignation"]

1. d4 {[%clk 0:02:59]} 1... Nf6 {[%clk 0:03:00.1]} 2. f3 {[%clk 0:02:58.5]} 2...
d5 {[%clk 0:02:57]} 3. Nc3 {[%clk 0:02:58.6]} 3... c5 {[%clk 0:02:56.7]} 4. dxc5
{[%clk 0:02:56.4]} 4... e5 {[%clk 0:02:42.8]} 5. e3 {[%clk 0:02:55.6]} 5... Bxc5
{[%clk 0:02:41.8]} 6. Nge2 {[%clk 0:02:51]} 6... O-O {[%clk 0:02:34.8]} 7. Ng3
{[%clk 0:02:49.5]} 7... Nc6 {[%clk 0:02:32.2]} 8. Bd3 {[%clk 0:02:46.3]} 8... a6
{[%clk 0:02:23.4]} 9. O-O {[%clk 0:02:39.7]} 9... b5 {[%clk 0:02:21.8]} 10. Kh1
{[%clk 0:02:38.1]} 10... Qb6 {[%clk 0:02:14]} 11. Bf5 {[%clk 0:02:05.8]} 11...
Be6 {[%clk 0:02:08.4]} 12. e4 {[%clk 0:01:52.2]} 12... Rad8 {[%clk 0:01:54.7]}
13. exd5 {[%clk 0:01:05.2]} 13... Nxd5 {[%clk 0:01:51.1]} 14. Nxd5 {[%clk
0:01:04.7]} 14... Bxd5 {[%clk 0:01:48]} 15. Qe1 {[%clk 0:01:02.8]} 15... g6
{[%clk 0:01:42.5]} 16. Be4 {[%clk 0:01:02.4]} 16... f5 {[%clk 0:01:41.5]} 17.
Bxd5+ {[%clk 0:01:02]} 17... Rxd5 {[%clk 0:01:42.4]} 18. c3 {[%clk 0:00:57.3]}
18... Rfd8 {[%clk 0:01:11]} 19. Bg5 {[%clk 0:00:55.2]} 19... R8d7 {[%clk
0:01:10.8]} 20. Qe2 {[%clk 0:00:52.9]} 20... Qc7 {[%clk 0:01:10]} 21. a4 {[%clk
0:00:49.7]} 21... Kg7 {[%clk 0:00:52.1]} 22. axb5 {[%clk 0:00:39.8]} 22... axb5
{[%clk 0:00:52.3]} 23. Rfd1 {[%clk 0:00:24.1]} 23... Rxd1+ {[%clk 0:00:52]} 24.
Rxd1 {[%clk 0:00:23.7]} 24... Rxd1+ {[%clk 0:00:52.9]} 25. Qxd1 {[%clk
0:00:24.5]} 25... Qd6 {[%clk 0:00:52.3]} 26. Qxd6 {[%clk 0:00:23.9]} 26... Bxd6
{[%clk 0:00:53.2]} 27. Be3 {[%clk 0:00:23.9]} 27... f4 {[%clk 0:00:47.5]} 28.
Ne4 {[%clk 0:00:14.6]} 28... fxe3 {[%clk 0:00:47.2]} 29. Kg1 {[%clk 0:00:15.5]}
29... Bb8 {[%clk 0:00:34.3]} 30. Kf1 {[%clk 0:00:14.7]} 30... Na5 {[%clk
0:00:34.4]} 31. Ke2 {[%clk 0:00:13.1]} 31... Ba7 {[%clk 0:00:33.9]} 32. Nd6
{[%clk 0:00:13.5]} 32... b4 {[%clk 0:00:26.9]} 33. Nb5 {[%clk 0:00:12.4]} 33...
Bb6 {[%clk 0:00:22.1]} 34. cxb4 {[%clk 0:00:12.7]} 34... Nc6 {[%clk 0:00:22.4]}
35. Nd6 {[%clk 0:00:11.9]} 35... Nxb4 {[%clk 0:00:20.5]} 36. Nc4 {[%clk
0:00:12.4]} 36... Bd4 {[%clk 0:00:20.5]} 37. g3 {[%clk 0:00:10]} 37... Kf7
{[%clk 0:00:19.3]} 38. f4 {[%clk 0:00:09.6]} 38... exf4 {[%clk 0:00:19.8]} 39.
gxf4 {[%clk 0:00:09.4]} 39... Ke6 {[%clk 0:00:20.3]} 40. Kf3 {[%clk 0:00:09.7]}
40... Kd5 {[%clk 0:00:19.8]} 41. Na5 {[%clk 0:00:09.5]} 41... Nd3 {[%clk
0:00:17.1]} 42. b3 {[%clk 0:00:09.3]} 42... Nc1 {[%clk 0:00:15.5]} 0-1

[Event "Late-Titled-Tuesday-Blitz-May-14-2024"]
[Site "Chess.com"]
[Date "2024.05.14"]
[Round "2"]
[White "Supelyel"]
[Black "CarlosjPineror"]
[Result "0-1"]
[WhiteElo "2427"]
[BlackElo "2738"]
[TimeControl "180+1"]
[EndTime "14:18:25 PDT"]
[Termination "CarlosjPineror won by resignation"]

1. c4 {[%clk 0:02:54.2]} 1... Nf6 {[%clk 0:02:58.5]} 2. Nc3 {[%clk 0:02:53.7]}
2... d6 {[%clk 0:02:56.2]} 3. g3 {[%clk 0:02:49.9]} 3... g6 {[%clk 0:02:55.8]}
4. Bg2 {[%clk 0:02:50.5]} 4... Bg7 {[%clk 0:02:56.5]} 5. Nf3 {[%clk 0:02:51.1]}
5... O-O {[%clk 0:02:57.3]} 6. O-O {[%clk 0:02:51.6]} 6... c5 {[%clk 0:02:57.6]}
7. d3 {[%clk 0:02:52.2]} 7... Nc6 {[%clk 0:02:57.3]} 8. Bg5 {[%clk 0:02:52.4]}
8... Rb8 {[%clk 0:02:56.8]} 9. Bxf6 {[%clk 0:02:52.7]} 9... Bxf6 {[%clk
0:02:56.9]} 10. Rb1 {[%clk 0:02:53.1]} 10... a6 {[%clk 0:02:56.3]} 11. a3 {[%clk
0:02:49]} 11... b5 {[%clk 0:02:55.6]} 12. cxb5 {[%clk 0:02:49.4]} 12... axb5
{[%clk 0:02:56]} 13. Nd5 {[%clk 0:02:48.2]} 13... Bg7 {[%clk 0:02:56.5]} 14. b4
{[%clk 0:02:47.7]} 14... e6 {[%clk 0:02:56.4]} 15. Ne3 {[%clk 0:02:47.9]} 15...
cxb4 {[%clk 0:02:51.4]} 16. axb4 {[%clk 0:02:47.5]} 16... d5 {[%clk 0:02:51.9]}
17. Qb3 {[%clk 0:02:40.1]} 17... Bd7 {[%clk 0:02:51.7]} 18. Rfc1 {[%clk
0:02:39]} 18... Qe7 {[%clk 0:02:49.2]} 19. Rc5 {[%clk 0:02:37.1]} 19... Nd4
{[%clk 0:02:49.3]} 20. Nxd4 {[%clk 0:01:54.8]} 20... Bxd4 {[%clk 0:02:50.2]} 21.
Rc7 {[%clk 0:01:54.8]} 21... Rfc8 {[%clk 0:02:48]} 22. Rbc1 {[%clk 0:01:53.6]}
22... Rxc7 {[%clk 0:02:43.6]} 23. Rxc7 {[%clk 0:01:53.2]} 23... Be5 {[%clk
0:02:44]} 24. Rc1 {[%clk 0:01:49]} 24... Bd6 {[%clk 0:02:43.3]} 25. Rb1 {[%clk
0:01:43.5]} 25... Rc8 {[%clk 0:02:42.9]} 26. Nc2 {[%clk 0:01:38.4]} 26... Qf6
{[%clk 0:02:41.2]} 27. d4 {[%clk 0:01:20.1]} 27... Rc4 {[%clk 0:02:39.3]} 28. e3
{[%clk 0:01:19.4]} 28... Qd8 {[%clk 0:02:30.9]} 29. Bf1 {[%clk 0:01:19.8]} 29...
Rc8 {[%clk 0:02:27.1]} 30. Ne1 {[%clk 0:01:16.4]} 30... h5 {[%clk 0:01:52.1]}
31. Nd3 {[%clk 0:01:14.5]} 31... Kg7 {[%clk 0:01:49.9]} 32. Nc5 {[%clk
0:01:14.1]} 32... Bc6 {[%clk 0:01:48.6]} 33. Qb2 {[%clk 0:01:12.4]} 33... h4
{[%clk 0:01:46.4]} 34. Ra1 {[%clk 0:01:11.9]} 34... Qc7 {[%clk 0:01:43.5]} 35.
Bg2 {[%clk 0:01:02.1]} 35... e5 {[%clk 0:01:36.3]} 36. Ra6 {[%clk 0:00:50.3]}
36... Qe7 {[%clk 0:01:35.6]} 37. Qd2 {[%clk 0:00:31.6]} 37... e4 {[%clk
0:01:31.5]} 38. Qa2 {[%clk 0:00:31.1]} 38... Qg5 {[%clk 0:01:28.8]} 39. Ra7
{[%clk 0:00:27.6]} 39... Qg4 {[%clk 0:01:26.4]} 40. Qd2 {[%clk 0:00:22.8]} 40...
Ra8 {[%clk 0:01:23.3]} 41. h3 {[%clk 0:00:21.3]} 41... Qc8 {[%clk 0:01:16.8]}
42. Rxa8 {[%clk 0:00:19.8]} 42... Qxa8 {[%clk 0:01:14]} 43. g4 {[%clk
0:00:20.1]} 43... f5 {[%clk 0:01:10.1]} 44. gxf5 {[%clk 0:00:18.4]} 44... gxf5
{[%clk 0:01:11]} 45. Qe2 {[%clk 0:00:18.5]} 45... Kh6 {[%clk 0:01:08.7]} 46. Bf1
{[%clk 0:00:18.2]} 46... Qg8+ {[%clk 0:01:05.5]} 47. Kh1 {[%clk 0:00:18.3]}
47... f4 {[%clk 0:01:01.6]} 48. f3 {[%clk 0:00:15.9]} 48... Qg3 {[%clk
0:00:56.8]} 49. Bg2 {[%clk 0:00:13.2]} 49... fxe3 {[%clk 0:00:52.3]} 50. Kg1
{[%clk 0:00:09.3]} 50... Bf4 {[%clk 0:00:47.9]} 51. fxe4 {[%clk 0:00:08.1]}
51... Be8 {[%clk 0:00:45.9]} 52. Qg4 {[%clk 0:00:05.1]} 52... Qf2+ {[%clk
0:00:42.3]} 53. Kh1 {[%clk 0:00:04.9]} 53... Qe1+ {[%clk 0:00:43.1]} 54. Bf1
{[%clk 0:00:03.6]} 54... Qxf1+ {[%clk 0:00:43.5]} 55. Qg1 {[%clk 0:00:04.5]}
55... Qxh3+ {[%clk 0:00:43.7]} 0-1

[Event "Late-Titled-Tuesday-Blitz-May-14-2024"]
[Site "Chess.com"]
[Date "2024.05.14"]
[Round "2"]
[White "zsizsi99"]
[Black "mfschulz"]
[Result "1-0"]
[WhiteElo "2526"]
[BlackElo "2305"]
[TimeControl "180+1"]
[EndTime "14:18:26 PDT"]
[Termination "zsizsi99 won by checkmate"]

1. e4 {[%clk 0:03:00.9]} 1... g6 {[%clk 0:02:59.1]} 2. d4 {[%clk 0:03:00.5]}
2... Bg7 {[%clk 0:02:59.2]} 3. Nc3 {[%clk 0:03:00.3]} 3... c5 {[%clk 0:02:59.2]}
4. Be3 {[%clk 0:02:56.7]} 4... cxd4 {[%clk 0:02:58.7]} 5. Bxd4 {[%clk
0:02:56.9]} 5... Nf6 {[%clk 0:02:58.9]} 6. e5 {[%clk 0:02:55.4]} 6... Nh5 {[%clk
0:02:58.1]} 7. e6 {[%clk 0:02:53.6]} 7... fxe6 {[%clk 0:02:47]} 8. g4 {[%clk
0:02:45.4]} 8... Nc6 {[%clk 0:02:41.7]} 9. Bxg7 {[%clk 0:02:36.6]} 9... Nxg7
{[%clk 0:02:40.7]} 10. Qd2 {[%clk 0:02:28.8]} 10... O-O {[%clk 0:02:37.3]} 11.
O-O-O {[%clk 0:02:29.3]} 11... Qb6 {[%clk 0:02:34.7]} 12. f3 {[%clk 0:02:26.4]}
12... d5 {[%clk 0:02:23.5]} 13. h4 {[%clk 0:02:25.8]} 13... Ne5 {[%clk 0:02:10]}
14. h5 {[%clk 0:02:23.3]} 14... Nxf3 {[%clk 0:01:51.4]} 15. Nxf3 {[%clk
0:01:59.9]} 15... Rxf3 {[%clk 0:01:50.1]} 16. hxg6 {[%clk 0:02:00.2]} 16... Qe3
{[%clk 0:01:43.7]} 17. gxh7+ {[%clk 0:01:58.3]} 17... Kh8 {[%clk 0:01:43.4]} 18.
Qxe3 {[%clk 0:01:49.4]} 18... Rxe3 {[%clk 0:01:42.3]} 19. Bd3 {[%clk 0:01:42.4]}
19... d4 {[%clk 0:01:29.9]} 20. Ne4 {[%clk 0:01:17.3]} 20... e5 {[%clk
0:01:28.8]} 21. Ng5 {[%clk 0:01:17.3]} 21... Be6 {[%clk 0:01:13]} 22. Nxe6
{[%clk 0:00:55.1]} 22... Nxe6 {[%clk 0:01:12.4]} 23. Rde1 {[%clk 0:00:55.3]}
23... Nf4 {[%clk 0:01:08]} 24. Rxe3 {[%clk 0:00:41.6]} 24... dxe3 {[%clk
0:01:07.5]} 25. Re1 {[%clk 0:00:41.3]} 25... e2 {[%clk 0:00:47.5]} 26. Bxe2
{[%clk 0:00:40.2]} 26... Kxh7 {[%clk 0:00:47]} 27. Bf3 {[%clk 0:00:36.8]} 27...
Ng6 {[%clk 0:00:37.7]} 28. Bxb7 {[%clk 0:00:33.5]} 28... Rb8 {[%clk 0:00:37.9]}
29. Be4 {[%clk 0:00:32.5]} 29... Rb4 {[%clk 0:00:36]} 30. Bxg6+ {[%clk
0:00:30.5]} 30... Kxg6 {[%clk 0:00:35.4]} 31. Rxe5 {[%clk 0:00:31.2]} 31... Kf6
{[%clk 0:00:35.1]} 32. Ra5 {[%clk 0:00:31.2]} 32... Rxg4 {[%clk 0:00:33.6]} 33.
Rxa7 {[%clk 0:00:31.4]} 33... e5 {[%clk 0:00:33.4]} 34. a4 {[%clk 0:00:19.5]}
34... e4 {[%clk 0:00:29.8]} 35. a5 {[%clk 0:00:19.5]} 35... Kf5 {[%clk
0:00:22.2]} 36. a6 {[%clk 0:00:18.7]} 36... e3 {[%clk 0:00:21.6]} 37. Kd1 {[%clk
0:00:17.7]} 37... Ke4 {[%clk 0:00:19.2]} 38. Re7+ {[%clk 0:00:16.8]} 38... Kf3
{[%clk 0:00:19.2]} 39. Rf7+ {[%clk 0:00:17]} 39... Ke4 {[%clk 0:00:15.7]} 40. a7
{[%clk 0:00:14.9]} 40... Rg1+ {[%clk 0:00:15.5]} 41. Ke2 {[%clk 0:00:14.9]}
41... Rg2+ {[%clk 0:00:13.1]} 42. Kf1 {[%clk 0:00:14.5]} 42... Rxc2 {[%clk
0:00:06.3]} 43. a8=Q+ {[%clk 0:00:13.7]} 43... Kd3 {[%clk 0:00:05]} 44. Qd5#
{[%clk 0:00:13.4]} 1-0